bitfinex/quotes_SOLUSD_20251106
["timestamp","ask_amount","ask_price","bid_price","bid_amount"]
[1762432953850,7.52,157.55,157.52,7.13835116]
[1762432954044,7.52,157.55,157.53,9.78882769]
[1762432954244,7.52,157.55,157.53,10.47882769]
[1762432954468,11.5988833,157.58,157.54,0.69]
[1762432954688,7.54,157.58,157.54,0.69]
[1762432955052,0.7,157.57,157.52,6.44835116]
[1762432955272,4.0588833,157.57,157.53,0.69]
[1762432955661,4.0588833,157.54,157.52,0.1]
[1762432955973,7.54,157.54,157.52,6.44833747]
[1762432956389,4.0588833,157.53,157.52,0.1]
[1762432956752,11.5988833,157.54,157.52,0.1]
[1762432957060,4.0588833,157.53,157.52,0.1]
[1762432957260,7.54,157.54,157.52,0.8]
[1762432957773,4.0588833,157.53,157.52,0.1]
[1762432957989,4.7288833,157.53,157.52,0.1]
[1762432958489,20.592,157.51,157.43,0.7]
[1762432958693,20.592,157.47,157.39,0.7]
[1762432958978,7.56,157.48,157.42,0.7]
[1762432959176,7.56,157.48,157.43,9.78882769]
[1762432959366,0.67,157.47,157.41,0.7]
[1762432959566,20.592,157.47,157.42,9.78882769]
[1762432959762,7.56,157.47,157.42,9.78882769]
[1762432959963,7.56,157.47,157.44,9.78882769]
[1762432960357,7.56,157.47,157.44,0.7]
[1762432960555,7.56,157.47,157.41,4.0588833]
[1762432960782,7.56,157.47,157.42,9.78882769]
[1762432960982,16.66444047,157.53,157.44,9.78882769]
[1762432960983,4.0588833,157.5,157.44,9.78882769]
[1762432961288,7.58,157.5,157.48,9.78882769]
[1762432961895,21.1988833,157.59,157.5,9.78882769]
[1762432961896,7.58,157.53,157.5,9.78882769]
[1762432962202,7.58,157.54,157.48,9.78882769]
[1762432962401,28.172,157.53,157.46,0.7]
[1762432962691,7.58,157.52,157.47,9.78882769]
[1762432963188,11.6588833,157.53,157.49,9.78882769]
[1762432963490,11.6588833,157.53,157.49,16.13837222]
[1762432963678,7.6,157.53,157.51,9.78882769]
[1762432964173,4.0588833,157.52,157.48,9.78882769]
[1762432964356,4.0588833,157.52,157.47,6.35041595]
[1762432964560,7.6,157.53,157.47,9.78882769]
[1762432964561,4.0588833,157.5,157.47,9.78882769]
[1762432964787,4.0588833,157.48,157.45,7.05117579]
[1762432964968,7.58,157.49,157.45,0.7]
[1762432965287,28.192,157.53,157.47,9.78882769]
[1762432965473,28.192,157.53,157.46,4.7588833]
[1762432965474,28.192,157.53,157.46,0.7]
[1762432965669,7.6,157.53,157.47,9.78882769]
[1762432965986,7.6,157.54,157.5,4.0588833]
[1762432966178,7.6,157.54,157.51,4.0588833]
[1762432966381,7.62,157.57,157.53,9.78882769]
[1762432966886,7.62,157.57,157.54,0.7]
[1762432967384,4.0588833,157.59,157.55,16.13582476]
[1762432967584,7.6,157.58,157.55,9.78882769]
[1762432967788,7.6,157.58,157.55,16.83585091]
[1762432967991,7.6,157.58,157.55,16.13585091]
[1762432968285,7.6,157.58,157.55,10.48882769]
[1762432968669,7.6,157.58,157.55,16.13590075]
[1762432968879,11.6588833,157.6,157.53,6.34778989]
[1762432969078,7.6,157.6,157.55,0.7]
[1762432969280,11.6588833,157.6,157.55,0.7]
[1762432969471,8.27,157.6,157.55,0.7]
[1762432969669,4.0588833,157.59,157.55,0.7]
[1762432969867,14.61522799,157.6,157.55,0.7]
[1762432970088,4.7288833,157.59,157.53,10.48882769]
[1762432970293,4.0588833,157.59,157.55,0.7]
[1762432970966,4.0588833,157.62,157.56,9.78882769]
[1762432971165,4.0588833,157.6,157.56,9.78882769]
[1762432971366,12.3288833,157.62,157.57,6.34638573]
[1762432971606,4.0588833,157.64,157.58,9.78882769]
[1762432971900,4.0588833,157.64,157.6,9.78882769]
[1762432971901,7.6,157.64,157.6,9.78882769]
[1762432972267,7.6,157.64,157.62,9.78882769]
[1762432972769,7.6,157.64,157.58,9.78882769]
[1762432972971,7.6,157.64,157.59,16.84995746]
[1762432973175,7.6,157.64,157.6,0.72]
[1762432973408,7.6,157.64,157.62,9.78882769]
[1762432973883,7.6,157.64,157.62,10.50882769]
[1762432974594,7.6,157.64,157.63,0.72]
[1762432974776,7.6,157.64,157.63,10.50882769]
[1762432975173,7.6,157.64,157.63,9.78882769]
[1762432975373,104.7,157.65,157.63,16.85263161]
[1762432976577,104.7,157.65,157.63,10.50882769]
[1762432977182,104.7,157.65,157.63,16.85270527]
[1762432977377,7.6,157.66,157.63,16.85270527]
[1762432978191,7.6,157.66,157.63,10.50882769]
[1762432978389,7.6,157.66,157.63,9.78882769]
[1762432978595,7.6,157.66,157.63,16.13272804]
[1762432979293,13.94112977,157.66,157.63,0.72]
[1762432979494,8.26,157.66,157.61,9.78882769]
[1762432979674,14.60112977,157.66,157.61,10.50882769]
[1762432979995,14.60112977,157.66,157.62,0.72]
[1762432980199,14.60112977,157.66,157.61,9.78882769]
[1762432980378,7.6,157.66,157.62,0.72]
[1762432980573,7.6,157.66,157.63,9.78882769]
[1762432980778,7.6,157.66,157.63,16.12995746]
[1762432980984,7.6,157.66,157.64,7.06112977]
[1762432981493,7.6,157.66,157.65,6.34316523]
[1762432981674,7.00112977,157.72,157.66,9.78882769]
[1762432981871,6.34112977,157.68,157.66,9.78882769]
[1762432982074,6.34112977,157.68,157.61,9.78882769]
[1762432982075,111.70112977,157.67,157.61,9.78882769]
[1762432982321,20.592,157.63,157.5,15.87301587]
[1762432982488,20.592,157.59,157.5,6.34920634]
[1762432982791,7.62,157.58,157.51,0.72]
[1762432982999,21.38509688,157.61,157.53,6.34112977]
[1762432983206,7.62,157.6,157.51,0.72]
[1762432983507,7.62,157.6,157.52,9.78882769]
[1762432983693,6.34112977,157.58,157.52,16.13709721]
[1762432983905,7.62,157.6,157.55,9.78882769]
[1762432984076,7.62,157.6,157.54,9.78882769]
[1762432984279,7.62,157.6,157.56,9.78882769]
[1762432984498,7.62,157.6,157.58,6.34112977]
[1762432984797,7.62,157.6,157.58,9.78882769]
[1762432985105,27.59312977,157.64,157.58,9.78882769]
[1762432985106,7.62,157.63,157.58,10.50882769]
[1762432985403,7.62,157.63,157.58,9.78882769]
[1762432985602,7.62,157.63,157.58,16.13478414]
[1762432985801,7.62,157.63,157.59,0.72]
[1762432985802,8.28,157.63,157.59,0.72]
[1762432986005,8.28,157.63,157.58,16.13478414]
[1762432986185,8.28,157.63,157.6,9.78882769]
[1762432986186,7.62,157.63,157.6,9.78882769]
[1762432986902,7.62,157.63,157.58,6.34595645]
[1762432986903,14.62112977,157.63,157.58,6.34595645]
[1762432987099,14.62112977,157.63,157.59,9.78882769]
[1762432987513,7.00112977,157.62,157.57,9.78882769]
[1762432987718,50.0,157.71,157.59,9.78882769]
[1762432988015,0.66,157.65,157.59,16.12995746]
[1762432988174,7.62,157.64,157.61,9.78882769]
[1762432988377,7.62,157.64,157.6,9.78882769]
[1762432988578,6.34112977,157.62,157.56,6.34112977]
[1762432988778,6.34112977,157.62,157.56,16.84995746]
[1762432988993,7.00112977,157.63,157.56,16.12995746]
[1762432989219,7.00112977,157.63,157.58,9.78882769]
[1762432989505,6.34112977,157.61,157.56,6.34661863]
[1762432989708,6.34112977,157.58,157.51,6.34112977]
[1762432989917,6.34112977,157.56,157.46,22.22786738]
[1762432990087,6.34112977,157.54,157.48,6.34112977]
[1762432990409,7.64,157.54,157.49,9.78882769]
[1762432990589,7.64,157.54,157.5,6.34112977]
[1762432990910,7.64,157.58,157.54,9.78882769]
[1762432991321,7.64,157.58,157.53,6.34112977]
[1762432991322,7.64,157.58,157.56,9.78882769]
[1762432991494,0.66,157.65,157.6,9.78882769]
[1762432991687,14.64112977,157.65,157.6,9.78882769]
[1762432991884,7.64,157.65,157.6,16.12995746]
[1762432992090,7.64,157.65,157.62,9.78882769]
[1762432992506,0.66,157.71,157.64,16.12995746]
[1762432992721,7.64,157.7,157.65,6.34112977]
[1762432992920,7.64,157.7,157.66,9.78882769]
[1762432993124,7.64,157.7,157.67,0.72]
[1762432993313,0.66,157.74,157.68,16.12995746]
[1762432993628,0.2,157.75,157.72,16.12917767]
[1762432993935,0.2,157.75,157.71,9.78882769]
[1762432994100,0.2,157.75,157.71,10.50882769]
[1762432994306,0.2,157.75,157.72,0.72]
[1762432994702,0.2,157.75,157.71,9.78882769]
[1762432994899,0.2,157.75,157.71,10.50882769]
[1762432995126,6.54112977,157.75,157.7,9.78882769]
[1762432995328,0.2,157.81,157.74,9.78882769]
[1762432995534,0.66,157.8,157.73,16.12849167]
[1762432995828,6.34112977,157.79,157.73,16.12869324]
[1762432996031,7.64,157.79,157.73,9.78882769]
[1762432996204,14.64112977,157.79,157.73,9.78882769]
[1762432996406,6.34112977,157.77,157.71,6.34112977]
[1762432996606,6.34112977,157.74,157.7,9.78882769]
[1762432996806,14.00112977,157.74,157.69,9.78882769]
[1762432997110,7.66,157.74,157.69,16.12995746]
[1762432997325,7.66,157.74,157.7,0.72]
[1762432997646,7.66,157.74,157.72,9.78882769]
[1762432997925,6.34112977,157.77,157.72,9.78882769]
[1762432998131,6.34112977,157.77,157.72,10.50882769]
[1762432998508,14.00112977,157.78,157.72,10.50882769]
[1762432998708,14.00112977,157.78,157.72,16.84995746]
[1762432999104,6.34112977,157.76,157.72,9.78882769]
[1762432999309,0.66,157.77,157.72,9.78882769]
[1762432999310,6.34112977,157.75,157.72,9.78882769]
[1762433000221,0.66,157.74,157.7,6.34076981]
[1762433000408,6.34112977,157.75,157.71,9.78882769]
[1762433000733,7.00112977,157.75,157.71,9.78882769]
[1762433001716,7.00112977,157.74,157.69,6.34144198]
[1762433001923,7.00112977,157.74,157.68,9.78882769]
[1762433001924,8.3,157.74,157.68,9.78882769]
[1762433002124,6.34112977,157.73,157.68,9.78882769]
[1762433002428,7.64,157.74,157.7,9.78882769]
[1762433002613,7.64,157.74,157.7,16.12995746]
[1762433002808,7.64,157.74,157.7,16.81995746]
[1762433003004,7.64,157.74,157.71,0.69]
[1762433003423,7.64,157.74,157.71,7.03062686]
[1762433003617,6.3383933,157.77,157.73,16.12995746]
[1762433003618,7.64,157.77,157.73,16.12995746]
[1762433004215,7.64,157.77,157.73,9.78882769]
[1762433004637,7.64,157.77,157.73,16.12995746]
[1762433004934,7.64,157.77,157.73,9.78882769]
[1762433005232,7.64,157.77,157.75,9.78882769]
[1762433005730,7.64,157.77,157.75,16.127912]
[1762433006110,7.64,157.77,157.75,9.78882769]
[1762433006315,7.02112977,157.76,157.72,9.78882769]
[1762433007214,6.34112977,157.76,157.72,10.47882769]
[1762433007414,7.64,157.77,157.72,16.81882714]
[1762433007737,7.02112977,157.76,157.7,7.03107023]
[1762433007919,0.68,157.76,157.7,6.34107023]
[1762433008233,13.97849326,157.77,157.69,9.78882769]
[1762433008234,6.34112977,157.73,157.69,9.78882769]
[1762433008436,13.96112977,157.73,157.69,9.78882769]
[1762433008929,6.34112977,157.71,157.68,9.78882769]
[1762433009315,6.34112977,157.69,157.66,9.78882769]
[1762433009534,6.34112977,157.68,157.63,6.34397005]
[1762433009832,6.34112977,157.68,157.63,7.03397005]
[1762433010007,7.02112977,157.68,157.64,9.78882769]
[1762433010209,6.34112977,157.67,157.64,9.78882769]
[1762433010613,7.02112977,157.67,157.63,6.34397005]
[1762433010835,6.34112977,157.66,157.61,16.82332931]
[1762433011015,7.02112977,157.67,157.63,9.78882769]
[1762433011635,7.62,157.66,157.63,16.1327862]
[1762433012016,7.62,157.66,157.63,9.78882769]
[1762433012216,8.3,157.66,157.61,6.34448911]
[1762433012418,14.64112977,157.66,157.62,9.78882769]
[1762433013141,13.96112977,157.66,157.62,10.47882769]
[1762433013645,13.96112977,157.66,157.62,16.8230804]
[1762433013935,14.64112977,157.66,157.62,16.1330804]
[1762433014141,14.64112977,157.66,157.61,16.13348774]
[1762433014436,14.64112977,157.66,157.61,9.78882769]
[1762433014437,111.04112977,157.65,157.61,9.78882769]
[1762433014641,111.72112977,157.65,157.61,9.78882769]
[1762433015050,6.34112977,157.63,157.59,9.78882769]
[1762433015227,13.96112977,157.62,157.59,9.78882769]
[1762433016122,0.68,157.61,157.55,13.37807129]
[1762433016323,6.34112977,157.61,157.56,9.78882769]
[1762433016616,6.34112977,157.61,157.56,10.47882769]
[1762433016833,6.34112977,157.6,157.56,0.67]
[1762433017051,7.62,157.59,157.56,0.67]
[1762433017346,7.62,157.59,157.54,6.34112977]
[1762433017522,7.62,157.59,157.57,6.34638573]
[1762433017717,0.66,157.62,157.57,6.34638573]
[1762433017718,6.34112977,157.64,157.58,16.12995746]
[1762433017945,7.00112977,157.68,157.61,6.34112977]
[1762433018147,7.62,157.68,157.63,6.34112977]
[1762433018626,7.62,157.68,157.65,9.78882769]
[1762433018954,7.62,157.68,157.65,10.45882769]
[1762433019162,7.62,157.68,157.65,0.67]
[1762433019946,7.62,157.68,157.66,6.3427629]
[1762433020155,7.62,157.68,157.65,7.0130452]
[1762433020540,7.62,157.69,157.65,7.0130452]
[1762433020758,7.62,157.69,157.66,16.79995746]
[1762433020937,7.62,157.69,157.66,9.78882769]
[1762433021129,14.62112977,157.69,157.65,6.3430452]
[1762433021729,0.66,157.68,157.65,6.3430452]
[1762433021945,14.62112977,157.69,157.64,16.13239531]
[1762433022151,14.62112977,157.69,157.64,16.80239531]
[1762433022752,0.66,157.68,157.64,9.78882769]
[1762433023068,7.00112977,157.68,157.64,9.78882769]
[1762433023241,111.70112977,157.68,157.64,9.78882769]
[1762433023446,105.36,157.68,157.64,9.78882769]
[1762433023643,111.04112977,157.68,157.64,9.78882769]
[1762433023843,6.34112977,157.66,157.61,9.78882769]
[1762433024061,7.6,157.65,157.61,9.78882769]
[1762433024562,8.26,157.65,157.6,16.13367529]
[1762433024845,8.26,157.65,157.61,0.67]
[1762433025071,6.34112977,157.64,157.6,16.80367529]
[1762433025364,13.94112977,157.65,157.6,16.13398773]
[1762433025564,7.6,157.65,157.61,0.67]
[1762433026081,7.6,157.65,157.62,6.34437254]
[1762433026666,13.94112977,157.65,157.62,6.34437254]
[1762433027274,13.94112977,157.65,157.61,6.34467655]
[1762433027448,14.60112977,157.65,157.61,6.34467655]
[1762433027651,7.00112977,157.64,157.61,6.34467655]
[1762433027841,6.34112977,157.63,157.57,0.67]
[1762433028046,6.34112977,157.63,157.58,16.13444095]
[1762433028363,6.34112977,157.64,157.58,16.13444095]
[1762433028669,6.34112977,157.64,157.58,16.80444095]
[1762433028874,6.34112977,157.64,157.58,32.66939843]
[1762433029385,7.00112977,157.64,157.58,32.66939843]
[1762433029567,6.34112977,157.63,157.58,32.66939843]
[1762433029954,7.6,157.65,157.6,16.13400535]
[1762433030253,13.94112977,157.65,157.61,0.67]
[1762433030443,119.30112977,157.65,157.6,16.13400535]
[1762433030647,6.34112977,157.64,157.6,16.80400535]
[1762433031152,112.3,157.65,157.61,0.67]
[1762433031371,7.6,157.65,157.63,9.78882769]
[1762433031854,7.6,157.65,157.61,0.67]
[1762433031855,14.60112977,157.65,157.61,0.67]
[1762433032056,14.60112977,157.65,157.62,6.34437254]
[1762433032251,7.03112977,157.64,157.6,16.1339273]
[1762433032457,6.34112977,157.63,157.6,16.1339273]
[1762433032668,6.34112977,157.63,157.6,6.34509961]
[1762433032977,7.6,157.65,157.58,15.86482767]
[1762433032978,7.03112977,157.62,157.58,6.34584853]
[1762433033273,6.34112977,157.6,157.55,9.78882769]
[1762433033483,6.34112977,157.59,157.55,9.78882769]
[1762433033873,6.34112977,157.59,157.55,16.79601905]
[1762433034083,0.69,157.58,157.55,6.34719136]
[1762433034384,0.69,157.58,157.52,16.53069797]
[1762433034385,11.66891854,157.57,157.53,6.3479972]
[1762433034746,7.6,157.57,157.54,9.78882769]
[1762433034958,7.6,157.57,157.54,10.44882769]
[1762433035777,7.6,157.57,157.55,0.66]
[1762433035954,4.75891854,157.6,157.55,0.66]
[1762433036277,7.6,157.59,157.56,6.34678852]
[1762433036475,7.6,157.59,157.57,9.78882769]
[1762433036651,7.6,157.59,157.57,10.44882769]
[1762433036852,7.6,157.59,157.57,9.78882769]
[1762433037251,0.69,157.58,157.55,6.3471909]
[1762433037456,4.75891854,157.58,157.55,6.3471909]
[1762433037961,0.69,157.63,157.56,10.44882769]
[1762433038159,7.6,157.62,157.58,13.85774623]
[1762433038367,7.6,157.62,157.53,16.13672663]
[1762433038368,4.06891854,157.59,157.53,16.13672663]
[1762433038677,14.63449079,157.62,157.54,9.78882769]
[1762433038678,11.66891854,157.58,157.54,9.78882769]
[1762433039052,4.06891854,157.57,157.54,10.44882769]
[1762433039361,4.06891854,157.57,157.54,9.78882769]
[1762433039556,8.29,157.58,157.53,6.34789894]
[1762433039557,7.6,157.58,157.53,6.34789894]
[1762433039751,4.75891854,157.57,157.53,7.00789894]
[1762433039953,4.06891854,157.57,157.53,7.00789894]
[1762433040590,4.06891854,157.57,157.53,22.87789195]
[1762433040765,11.66891854,157.58,157.54,10.44882769]
[1762433040954,7.6,157.58,157.54,14.51774623]
[1762433041276,7.6,157.58,157.53,22.21789195]
[1762433041277,4.06891854,157.63,157.56,13.85774623]
[1762433041474,112.3,157.62,157.56,13.85774623]
[1762433041658,7.6,157.62,157.6,9.78882769]
[1762433041856,7.6,157.62,157.6,10.44882769]
[1762433042081,7.6,157.62,157.61,16.79360276]
[1762433043056,4.06891854,157.67,157.62,9.78882769]
[1762433043265,7.6,157.66,157.62,10.44882769]
[1762433043557,12.35891854,157.66,157.62,9.78882769]
[1762433043972,8.29,157.66,157.62,9.78882769]
[1762433044175,7.6,157.66,157.63,7.00397005]
[1762433044365,7.6,157.66,157.63,0.66]
[1762433045397,7.6,157.67,157.64,13.85774623]
[1762433045794,7.6,157.67,157.65,0.66]
[1762433046086,7.6,157.67,157.62,22.20528046]
[1762433046087,7.6,157.67,157.63,16.13246606]
[1762433046258,8.29,157.67,157.63,16.13246606]
[1762433046462,8.29,157.67,157.63,16.79246606]
[1762433046864,7.6,157.67,157.63,16.79246606]
[1762433047394,4.75891854,157.69,157.63,32.6523912]
[1762433047688,7.6,157.67,157.63,36.72130974]
[1762433048060,7.6,157.67,157.64,0.66]
[1762433048259,4.06891854,157.65,157.55,31.7342142]
[1762433048562,4.06891854,157.62,157.57,9.78882769]
[1762433048778,7.6,157.62,157.59,9.78882769]
[1762433048981,12.35891854,157.62,157.59,9.78882769]
[1762433049359,12.35891854,157.62,157.56,22.21366446]
[1762433049360,4.06891854,157.61,157.56,22.21366446]
[1762433049686,4.06891854,157.59,157.57,9.78882769]
[1762433050259,4.06891854,157.61,157.58,6.34598299]
[1762433050687,11.64891854,157.61,157.58,6.34598299]
[1762433051266,11.64891854,157.61,157.58,7.00598299]
[1762433051472,7.58,157.62,157.59,10.44882769]
[1762433051672,7.58,157.62,157.59,9.78882769]
[1762433051962,7.58,157.62,157.59,10.44882769]
[1762433052467,4.06891854,157.61,157.57,9.78882769]
[1762433052670,4.06891854,157.61,157.59,9.78882769]
[1762433052982,11.64891854,157.62,157.59,9.78882769]
[1762433053377,0.69,157.61,157.59,9.78882769]
[1762433053579,8.13783708,157.6,157.52,9.78882769]
[1762433053780,4.06891854,157.54,157.5,0.66]
[1762433053991,4.06891854,157.54,157.48,0.66]
[1762433053992,4.06891854,157.53,157.48,0.66]
[1762433054163,4.06891854,157.52,157.49,9.78882769]
[1762433054364,4.06891854,157.52,157.48,0.66]
[1762433054773,4.06891854,157.52,157.48,7.00994329]
[1762433055095,0.69,157.55,157.49,9.78882769]
[1762433055301,7.6,157.54,157.51,9.78882769]
[1762433055793,7.6,157.54,157.49,9.78882769]
[1762433056090,11.66891854,157.54,157.49,10.44882769]
[1762433056280,11.66891854,157.54,157.5,6.34920634]
[1762433056479,4.75891854,157.53,157.49,10.44882769]
[1762433056686,4.75891854,157.53,157.49,16.79829554]
[1762433056883,4.06891854,157.53,157.49,16.79829554]
[1762433057679,7.6,157.54,157.49,16.79829554]
[1762433057886,4.06891854,157.53,157.49,16.79829554]
[1762433058079,4.06891854,157.53,157.49,32.67231928]
[1762433058279,8.29,157.54,157.49,32.67231928]
[1762433058481,4.06891854,157.53,157.49,32.67231928]
[1762433059297,4.75891854,157.52,157.49,9.78882769]
[1762433059492,0.69,157.52,157.49,9.78882769]
[1762433059697,4.75891854,157.51,157.49,9.78882769]
[1762433059868,7.58,157.5,157.49,9.78882769]
[1762433060270,7.58,157.5,157.49,7.00960949]
[1762433060476,7.58,157.5,157.49,0.66]
[1762433060775,4.75891854,157.54,157.49,4.72891854]
[1762433061100,7.6,157.53,157.49,4.72891854]
[1762433061301,4.06891854,157.51,157.48,10.44882769]
[1762433061600,0.69,157.56,157.49,0.66]
[1762433061775,11.66891854,157.55,157.49,4.72891854]
[1762433062105,4.06891854,157.53,157.49,0.66]
[1762433062401,4.06891854,157.53,157.5,6.34920634]
[1762433063403,8.27,157.55,157.49,6.34956422]
[1762433063579,4.06891854,157.53,157.49,6.34956422]
[1762433063775,4.06891854,157.54,157.49,7.03956422]
[1762433064192,4.73891854,157.54,157.51,9.78882769]
[1762433064377,11.66891854,157.55,157.51,9.78882769]
[1762433064583,11.66891854,157.55,157.51,16.13723455]
[1762433064784,11.66891854,157.55,157.51,16.82723455]
[1762433065000,7.6,157.55,157.53,9.78882769]
[1762433065300,4.73891854,157.54,157.51,9.78882769]
[1762433065482,0.67,157.54,157.51,9.78882769]
[1762433065685,0.67,157.53,157.5,9.78882769]
[1762433065989,13.9472325,157.55,157.45,20.692]
[1762433065990,4.06891854,157.51,157.45,0.1]
[1762433066192,4.06891854,157.48,157.45,0.1]
[1762433066395,4.06891854,157.5,157.45,0.1]
[1762433066580,13.94960949,157.49,157.45,0.1]
[1762433066779,4.06891854,157.46,157.37,2.16036466]
[1762433066980,4.06891854,157.43,157.37,2.16036466]
[1762433067205,7.6,157.42,157.41,9.78882769]
[1762433067902,7.6,157.42,157.41,10.47882769]
[1762433068104,12.33891854,157.42,157.37,1.47036466]
[1762433068395,7.6,157.42,157.4,8.88]
[1762433068597,50.0,157.43,157.4,8.88]
[1762433068905,7.6,157.42,157.4,8.88]
[1762433070000,7.6,157.42,157.4,9.57]
[1762433070209,7.62,157.42,157.4,8.88]
[1762433070502,21.3858524,157.46,157.4,9.57]
[1762433070709,7.66,157.45,157.4,8.88]
[1762433071031,50.0,157.54,157.42,9.78882769]
[1762433071179,50.0,157.51,157.42,9.78882769]
[1762433071502,50.79344928,157.54,157.43,0.69]
[1762433071687,50.0,157.49,157.42,0.69]
[1762433071893,0.79344928,157.54,157.44,9.78882769]
[1762433072091,56.34721283,157.55,157.44,9.78882769]
[1762433072092,7.7,157.53,157.44,9.78882769]
[1762433072399,4.06891854,157.52,157.47,9.78882769]
[1762433072614,7.72,157.51,157.48,9.78882769]
[1762433072819,7.72,157.51,157.49,9.78882769]
[1762433072982,7.72,157.51,157.49,10.47882769]
[1762433073182,7.72,157.51,157.48,4.06891854]
[1762433073382,7.72,157.52,157.51,9.78882769]
[1762433073583,7.72,157.52,157.5,0.69]
[1762433074106,7.72,157.53,157.5,0.69]
[1762433074482,4.06891854,157.52,157.48,9.78882769]
[1762433074677,7.72,157.53,157.48,10.47882769]
[1762433074893,4.06891854,157.51,157.48,0.69]
[1762433075112,4.06891854,157.5,157.45,14.54774623]
[1762433075335,7.7,157.49,157.46,9.78882769]
[1762433075528,4.06891854,157.47,157.42,0.69]
[1762433075819,6.34803134,157.53,157.43,4.06891854]
[1762433076012,7.72,157.52,157.46,9.78882769]
[1762433076209,4.06891854,157.5,157.46,9.78882769]
[1762433076404,11.78891854,157.49,157.41,6.35273694]
[1762433076715,7.72,157.48,157.42,0.66]
[1762433076926,11.78891854,157.47,157.42,0.66]
[1762433077226,6.3484002,157.52,157.42,0.66]
[1762433077227,11.78891854,157.46,157.42,0.66]
[1762433077432,7.72,157.45,157.43,9.78882769]
[1762433077794,4.06891854,157.49,157.45,9.78882769]
[1762433078000,7.72,157.47,157.46,14.51774623]
[1762433078229,11.78891854,157.51,157.46,4.72891854]
[1762433078408,4.06891854,157.5,157.47,0.66]
[1762433078801,7.72,157.51,157.47,0.66]
[1762433078999,11.78891854,157.51,157.48,9.78882769]
[1762433079230,11.78891854,157.51,157.41,4.06891854]
[1762433079231,11.78891854,157.51,157.41,11.78891854]
[1762433079438,4.06891854,157.44,157.4,8.88]
[1762433079600,11.78891854,157.43,157.4,8.88]
[1762433079795,7.72,157.43,157.4,15.23317854]
[1762433080019,7.72,157.43,157.41,0.66]
[1762433080215,4.06891854,157.47,157.42,13.85774623]
[1762433080418,7.72,157.46,157.42,9.78882769]
[1762433080600,7.72,157.46,157.43,0.66]
[1762433080930,4.06891854,157.44,157.42,0.66]
[1762433081116,4.06891854,157.44,157.41,9.78882769]
[1762433081304,7.72,157.46,157.41,10.44882769]
[1762433081504,4.06891854,157.45,157.41,9.78882769]
[1762433081709,4.06891854,157.43,157.4,8.88]
[1762433082013,14.07101331,157.46,157.4,8.88]
[1762433082216,4.06891854,157.43,157.4,8.88]
[1762433082435,4.06891854,157.42,157.4,8.88]
[1762433082631,7.72,157.41,157.4,8.88]
[1762433082833,18.14175508,157.41,157.4,8.88]
[1762433083008,7.72,157.41,157.4,8.88]
[1762433083337,11.78891854,157.41,157.4,8.88]
[1762433083502,14.07283654,157.41,157.4,8.88]
[1762433083706,4.06891854,157.41,157.4,8.88]
[1762433083908,7.72,157.41,157.4,8.88]
[1762433084816,7.72,157.41,157.4,9.54]
[1762433085235,54.06891854,157.5,157.41,9.78882769]
[1762433085535,4.06891854,157.43,157.4,8.88]
[1762433085734,11.78891854,157.43,157.4,15.23321468]
[1762433085936,7.72,157.43,157.41,10.44882769]
[1762433086137,4.06891854,157.45,157.41,10.44882769]
[1762433086433,11.80891854,157.46,157.41,9.78882769]
[1762433086633,11.80891854,157.46,157.41,14.51774623]
[1762433086814,7.74,157.45,157.42,0.66]
[1762433087009,7.74,157.45,157.43,9.78882769]
[1762433087337,20.592,157.49,157.44,0.66]
[1762433087539,7.74,157.48,157.45,9.78882769]
[1762433087960,7.74,157.48,157.46,0.66]
[1762433088124,4.06891854,157.48,157.42,26.30238988]
[1762433088321,4.06891854,157.44,157.4,8.88]
[1762433088526,4.06891854,157.45,157.4,8.88]
[1762433088718,4.06891854,157.46,157.4,12.94891854]
[1762433088917,7.74,157.48,157.4,19.30213778]
[1762433089243,4.06891854,157.46,157.41,4.06891854]
[1762433089416,4.06891854,157.46,157.4,19.30213778]
[1762433089621,4.06891854,157.45,157.4,8.88]